fUSD/lending_fUSD_20250405
["ID","MTS","AMOUNT","RATE_DAILY","PERIOD"]
[357211086,1743897034095,-500.0,0.00030409,2]
[357211087,1743897034105,-500.0,0.0003041,2]
[357211088,1743897034114,-500.0,0.0003041,2]
[357211089,1743897034123,-165.8073661,0.0003041,2]
[357211090,1743897034132,-500.0,0.0003041,2]
[357211091,1743897034142,-632.32206233,0.0003041,2]
[357211092,1743897034151,-500.0,0.0003041,2]
[357211093,1743897034161,-500.0,0.0003041,2]
[357211094,1743897034170,-496.32738458,0.0003041,2]
[357211095,1743897034179,-617.15767697,0.0003041,2]
[357211096,1743897034188,-500.0,0.0003041,2]
[357211097,1743897034198,-500.0,0.0003041,2]
[357211098,1743897034207,-500.0,0.0003041,2]
[357211099,1743897034216,-500.0,0.0003041,2]
[357211100,1743897034225,-500.0,0.0003041,2]
[357211101,1743897034235,-500.0,0.0003041,2]
[357211102,1743897034244,-2000.0,0.0003041,2]
[357211103,1743897034253,-500.0,0.0003041,2]
[357211104,1743897034263,-500.0,0.0003041,2]
[357211105,1743897034273,-500.0,0.0003041,2]
[357211106,1743897034282,-500.0,0.0003041,2]
[357211107,1743897034291,-500.0,0.0003041,2]
[357211108,1743897034301,-500.0,0.0003041,2]
[357211109,1743897034311,-500.0,0.0003041,2]
[357211110,1743897034320,-500.0,0.0003041,2]
[357211111,1743897034329,-500.0,0.0003041,2]
[357211112,1743897034339,-184.22035274,0.0003041,2]
[357211113,1743897034348,-500.0,0.0003041,2]
[357211114,1743897034358,-500.0,0.0003041,2]
[357211115,1743897034367,-500.0,0.0003041,2]
[357211116,1743897034376,-553.80779872,0.00030583,2]
[357211117,1743897034385,-500.0,0.00030583,2]
[357211118,1743897034395,-199.05772763,0.00030583,2]
[357211119,1743897034404,-500.0,0.00030583,2]
[357211120,1743897034413,-500.0,0.00030583,2]
[357211121,1743897034422,-513.41750003,0.00030583,2]
[357211122,1743897034431,-500.0,0.00030583,2]
[357211123,1743897034441,-511.57048149,0.00030583,2]
[357211124,1743897034450,-574.87036745,0.00030583,2]
[357211125,1743897034460,-516.30838246,0.00030583,2]
[357211126,1743897034470,-505.54142811,0.00030583,2]
[357211127,1743897034480,-505.42695955,0.00030583,2]
[357211128,1743897034489,-512.35888466,0.00030583,2]
[357211129,1743897034499,-514.56612993,0.00030583,2]
[357211130,1743897034508,-533.52015198,0.00030583,2]
[357211131,1743897034666,-508.69370838,0.00030583,2]
[357211132,1743897034676,-505.27721648,0.00030583,2]
[357211133,1743897034688,-514.41309422,0.00030583,2]
[357211134,1743897034697,-200.0,0.00030583,2]
[357211135,1743897034707,-414.34754281,0.00030583,2]
[357211136,1743897034716,-501.17638583,0.00030583,2]
[357211137,1743897034725,-504.67658253,0.00030583,2]
[357211138,1743897034735,-500.0,0.00030583,2]
[357211139,1743897034745,-502.10157183,0.00030583,2]
[357211140,1743897034754,-535.73688638,0.00030583,2]
[357211141,1743897034764,-500.0,0.00030583,2]
[357211142,1743897034773,-500.0,0.00030583,2]
[357211143,1743897034783,-500.0,0.00030583,2]
[357211144,1743897034792,-500.0,0.00030583,2]
[357211145,1743897034802,-500.0,0.00030583,2]
[357211146,1743897034811,-500.0,0.00030583,2]
[357211147,1743897034820,-545.98252909,0.00030583,2]
[357211148,1743897034830,-552.42487315,0.00030583,2]
[357211149,1743897034839,-500.0,0.00030583,2]
[357211150,1743897034848,-500.0,0.00030583,2]
[357211151,1743897034858,-524.48700715,0.00030583,2]
[357211152,1743897034867,-500.0,0.00030583,2]
[357211153,1743897034876,-549.3684024,0.00030583,2]
[357211154,1743897034886,-549.13274717,0.00030583,2]
[357211155,1743897034895,-500.0,0.00030583,2]
[357211156,1743897034907,-500.0,0.00030583,2]
[357211157,1743897034918,-509.4031329,0.00030583,2]
[357211158,1743897034928,-533.21060942,0.00030583,2]
[357211159,1743897034938,-504.33051396,0.00030583,2]
[357211160,1743897034949,-509.91071171,0.00030583,2]
[357211161,1743897034959,-505.49295515,0.00030583,2]
[357211162,1743897034968,-523.09271621,0.00030583,2]
[357211163,1743897034978,-539.46779292,0.00030583,2]
[357211164,1743897034988,-500.0,0.00030583,2]
[357211165,1743897034999,-532.63516057,0.00030583,2]
[357211166,1743897035008,-520.12930537,0.00030583,2]
[357211167,1743897035018,-500.0,0.00030583,2]
[357211168,1743897035028,-527.9328838,0.00030583,2]
[357211169,1743897035038,-500.0,0.00030583,2]
[357211170,1743897035047,-1091.63,0.00030583,2]
[357211171,1743897035057,-509.5118842,0.00030583,2]
[357211172,1743897035066,-517.20919021,0.00030583,2]
[357211173,1743897035076,-280.02471084,0.00030583,2]
[357211174,1743897035085,-526.02156899,0.00030583,2]
[357211175,1743897035095,-530.30115626,0.00030583,2]
[357211176,1743897035105,-500.0,0.00030583,2]
[357211177,1743897035115,-509.89758865,0.00030583,2]
[357211178,1743897035126,-505.52804693,0.00030583,2]
[357211179,1743897035136,-342.30912079,0.00030583,2]
[357211180,1743897035146,-550.07386801,0.00030583,2]
[357211181,1743897035157,-500.0,0.00030583,2]
[357211182,1743897035169,-500.0,0.00030583,2]
[357211183,1743897035179,-848.11488557,0.00030583,2]
[357211184,1743897035189,-177.94082672,0.00030583,2]
[357211185,1743897035199,-500.0,0.00030583,2]
[357211186,1743897035208,-517.29440224,0.00030583,2]
[357211187,1743897035218,-515.35380868,0.00030583,2]
[357211188,1743897035231,-179.28,0.00030583,2]
[357211189,1743897035241,-500.0,0.00030583,2]
[357211190,1743897035251,-530.18169858,0.00030583,2]
[357211191,1743897035261,-542.21781651,0.00030583,2]
[357211192,1743897035270,-233.61539486,0.00030583,2]
[357211193,1743897035280,-500.0,0.00030583,2]
[357211194,1743897035289,-545.11059284,0.00030583,2]
[357211195,1743897035299,-520.06943918,0.00030583,2]
[357211196,1743897035308,-500.0,0.00030583,2]
[357211197,1743897035317,-531.65516425,0.00030583,2]
[357211198,1743897035327,-500.0,0.00030583,2]
[357211199,1743897035337,-514.17567783,0.00030583,2]
[357211200,1743897035347,-500.0,0.00030583,2]
[357211201,1743897035357,-508.19981203,0.00030583,2]
[357211202,1743897035366,-500.0,0.00030583,2]
[357211203,1743897035376,-722.04,0.00030583,2]
[357211204,1743897035386,-500.0,0.00030583,2]
[357211205,1743897035398,-525.25972368,0.00030583,2]
[357211206,1743897035411,-500.0,0.00030583,2]
[357211207,1743897035422,-500.0,0.00030583,2]
[357211208,1743897035432,-510.5453482,0.00030583,2]
[357211209,1743897035442,-514.53044221,0.00030583,2]
[357211210,1743897035451,-521.37424492,0.00030583,2]
[357211211,1743897035461,-494.37482036,0.00030583,2]
[357211212,1743897035561,-5.62517964,0.00030583,2]
[357211213,1743897035570,-500.0,0.00030583,2]
[357211214,1743897035581,-2674.7173127,0.00030584,2]
[357211215,1743897035592,-459.75538487,0.00030584,2]
[357211216,1743897035607,-1242.98570243,0.00030584,2]
[357211217,1743897035617,-166.7240938,0.00030655,2]
[357211218,1743897035626,-500.0,0.00030674,2]
[357211219,1743897035636,-500.0,0.00030674,2]
[357211220,1743897035646,-341.7309384,0.00030674,2]
[357211221,1743897035655,-500.0,0.00030682,2]
[357211222,1743897035664,-355.36,0.00030683,2]
[357211223,1743897035674,-167.79,0.00030683,2]
[357211224,1743897035683,-500.0,0.00030683,2]
[357211225,1743897035693,-500.0,0.00030683,2]
[357211226,1743897035702,-500.0,0.00030683,2]
[357211227,1743897035713,-410.80382997,0.00030683,2]
[357211228,1743897035727,-89.19617003,0.00030683,2]
[357211229,1743897035736,-500.0,0.00030683,2]
[357211230,1743897035746,-500.0,0.00030683,2]
[357211231,1743897035755,-500.0,0.00030683,2]
[357211232,1743897035765,-500.0,0.00030683,2]
[357211233,1743897035774,-500.0,0.00030683,2]
[357211234,1743897035784,-500.0,0.00030683,2]
[357211235,1743897035793,-738.52,0.00030683,2]
[357211236,1743897035803,-217.13231893,0.00030683,2]
[357211237,1743897035812,-500.0,0.00030683,2]
[357211238,1743897035822,-500.0,0.00030683,2]
[357211239,1743897035831,-500.0,0.00030683,2]
[357211240,1743897035840,-500.0,0.00030683,2]
[357211241,1743897035850,-500.0,0.00030683,2]
[357211242,1743897035861,-500.0,0.00030683,2]
[357211243,1743897035871,-598.96873022,0.00030683,2]
[357211244,1743897035881,-500.0,0.00030683,2]
[357211245,1743897035890,-500.0,0.00030683,2]
[357211246,1743897035900,-500.0,0.00030684,2]
[357211247,1743897035914,-173.93327293,0.00030684,2]
[357211248,1743897035926,-347.64298871,0.00030684,2]
[357211249,1743897035936,-253.75964981,0.00030684,2]
[357211250,1743897035951,-246.24035019,0.00030684,2]
[357211251,1743897035961,-76.67965041,0.00030684,2]
[357211252,1743897035972,-423.32034959,0.00030684,2]
[357211253,1743897035982,-500.0,0.00030684,2]
[357211254,1743897035992,-500.0,0.00030684,2]
[357211255,1743897036001,-500.0,0.00030684,2]
[357211256,1743897036011,-2000.0,0.00030684,2]
[357211257,1743897036020,-25.07367965,0.00030684,2]
[357211258,1743897036032,-474.92632035,0.00030684,2]
[357211259,1743897036041,-266.82689442,0.00030684,2]
[357211260,1743897036051,-500.0,0.00030684,2]
[357211261,1743897036061,-500.0,0.00030684,2]
[357211262,1743897036070,-143.92703393,0.00030684,2]
[357211263,1743897036086,-356.07296607,0.00030684,2]
[357211264,1743897036095,-500.0,0.00030684,2]
[357211265,1743897036105,-500.0,0.00030684,2]
[357211266,1743897036114,-500.0,0.00030684,2]
[357211267,1743897036124,-500.0,0.00030684,2]
[357211268,1743897036134,-500.0,0.00030684,2]
[357211269,1743897036143,-12.67483006,0.00030684,2]
[357211270,1743897036155,-487.32516994,0.00030684,2]
[357211271,1743897036164,-831.65509623,0.00030755,2]
[357211272,1743897036174,-80.9516374,0.00030758,2]
[357211273,1743897036185,-445.49189213,0.00030758,2]
[357211274,1743897036197,-6925.61097047,0.00030758,2]
[357211275,1743897036206,-471.8592,0.00030758,2]
[357211276,1743897036215,-305.20009705,0.00030758,2]
[357211277,1743897036227,-595.39054192,0.00030758,2]
[357211278,1743897036238,-482.17736103,0.00030758,2]
[357211279,1743897036248,-500.0,0.00030822,2]
[357211280,1743897036257,-500.0,0.00030857,2]
[357211281,1743897036266,-537.16175516,0.00030857,2]
[357211282,1743897036276,-500.0,0.00030857,2]
[357211283,1743897036285,-500.0,0.00030857,2]
[357211284,1743897036294,-292.87577192,0.00030857,2]
[357211285,1743897036304,-481.02846417,0.00030857,2]
[357211286,1743897036313,-500.0,0.00030857,2]
[357211287,1743897036323,-500.0,0.00030857,2]
[357211288,1743897036334,-79.79188617,0.00030857,2]
[357211289,1743897036345,-420.20811383,0.00030857,2]
[357211290,1743897036355,-249.89195841,0.00030857,2]
[357211291,1743897036366,-250.10804159,0.00030857,2]
[357211292,1743897036375,-546.70303126,0.00030857,2]
[357211293,1743897036384,-500.0,0.00030857,2]
[357211294,1743897036394,-500.0,0.00030857,2]
[357211295,1743897036403,-503.26534807,0.00030857,2]
[357211296,1743897036412,-500.0,0.00030857,2]
[357211297,1743897036422,-1091.63,0.00030857,2]
[357211298,1743897036431,-345.78638265,0.00030857,2]
[357211299,1743897036440,-500.0,0.00030857,2]
[357211300,1743897036450,-323.66781461,0.00030857,2]
[357211301,1743897036461,-176.33218539,0.00030857,2]
[357211302,1743897036471,-169.40311619,0.00030857,2]
[357211303,1743897036480,-4.75655277,0.00030857,2]
[357211304,1743897036496,-495.24344723,0.00030857,2]
[357211305,1743897036506,-500.0,0.00030857,2]
[357211306,1743897036515,-367.48155945,0.00030857,2]
[357211307,1743897036526,-157.17669973,0.00030857,2]
[357211308,1743897036536,-500.0,0.00030857,2]
[357211309,1743897036545,-500.0,0.00030857,2]
[357211310,1743897036554,-722.04,0.00030857,2]
[357211311,1743897036564,-500.0,0.00030857,2]
[357211312,1743897036573,-500.0,0.00030857,2]
[357211313,1743897036582,-500.0,0.00030857,2]
[357211314,1743897036593,-375.94746535,0.00030857,2]
[357211315,1743897036602,-513.8293806,0.00030956,2]
[357211316,1743897036611,-500.0,0.00030956,2]
[357211317,1743897036620,-322.81094627,0.00030956,2]
[357211318,1743897036631,-177.18905373,0.00030956,2]
[357211319,1743897036641,-510.83839953,0.00030956,2]
[357211320,1743897036649,-500.0,0.00030956,2]
[357211321,1743897036659,-519.80364516,0.00030956,2]
[357211322,1743897036668,-500.0,0.00030956,2]
[357211323,1743897036677,-507.60554518,0.00030956,2]
[357211324,1743897036686,-513.37176793,0.00030956,2]
[357211325,1743897036695,-500.0,0.00030956,2]
[357211326,1743897036704,-504.14684809,0.00030956,2]
[357211327,1743897036713,-506.54242806,0.00030956,2]
[357211328,1743897036722,-500.0,0.00030956,2]
[357211329,1743897036731,-308.05827748,0.00030956,2]
[357211330,1743897036740,-506.67798785,0.00030956,2]
[357211331,1743897036750,-503.91038197,0.00030956,2]
[357211332,1743897036761,-481.6562719,0.00030956,2]
[357211333,1743897036773,-18.3437281,0.00030956,2]
[357211334,1743897036782,-506.31270859,0.00030956,2]
[357211335,1743897036792,-504.8755743,0.00030956,2]
[357211336,1743897036801,-500.0,0.00030956,2]
[357211337,1743897036810,-565.4997888,0.00030956,2]
[357211338,1743897036819,-358.41775297,0.00030956,2]
[357211339,1743897036831,-141.58224703,0.00030956,2]
[357211340,1743897036840,-184.63611635,0.00030956,2]
[357211341,1743897036852,-322.17494374,0.00030956,2]
[357211342,1743897036861,-500.0,0.00030956,2]
[357211343,1743897036871,-503.08115151,0.00030956,2]
[357211344,1743897036880,-500.0,0.00030956,2]
[357211345,1743897036890,-500.0,0.00030956,2]
[357211346,1743897036899,-520.43077892,0.00030956,2]
[357211347,1743897036912,-509.35636741,0.00030956,2]
[357211348,1743897036922,-513.98791306,0.00030956,2]
[357211349,1743897036931,-500.0,0.00030956,2]
[357211350,1743897036940,-537.53331197,0.00030956,2]
[357211351,1743897036950,-500.0,0.00030956,2]
[357211352,1743897036959,-561.00454071,0.00030956,2]
[357211353,1743897036968,-379.61342406,0.00030956,2]
[357211354,1743897036982,-176.27368644,0.00030956,2]
[357211355,1743897036991,-122.42131356,0.00030956,2]
[357211356,1743897037004,-435.22785774,0.00030956,2]
[357211357,1743897037014,-69.19214226,0.00030956,2]
[357211358,1743897037054,-256.19254088,0.00030956,2]
[357211359,1743897037067,-176.59714678,0.00030956,2]
[357211360,1743897037077,-523.40285322,0.00030956,2]
[357211374,1743897037943,-314.93970736,0.00023879,2]
[357211375,1743897037955,-500.0,0.00030409,2]
[357211376,1743897037964,-500.0,0.00030583,2]
[357211377,1743897037973,-16.85966289,0.00030956,2]
[357211378,1743897037983,-507.36701892,0.00030956,2]
[357211379,1743897037992,-504.39180109,0.00030956,2]
[357211380,1743897038001,-503.75596813,0.00030956,2]
[357211381,1743897038010,-500.0,0.00030956,2]
[357211382,1743897038019,-500.0,0.00030956,2]
[357211383,1743897038028,-505.86729759,0.00030956,2]
[357211384,1743897038038,-500.0,0.00030956,2]
[357211385,1743897038047,-545.33799613,0.00030956,2]
[357211386,1743897038056,-500.0,0.00030956,2]
[357211387,1743897038066,-500.0,0.00030956,2]
[357211388,1743897038075,-500.0,0.00030956,2]
[357211389,1743897038084,-505.89751298,0.00030956,2]
[357211390,1743897038093,-575.55177325,0.00030956,2]
[357211391,1743897038102,-500.0,0.00030956,2]
[357211392,1743897038111,-545.71774998,0.00030956,2]
[357211393,1743897038121,-35.81054245,0.00030956,2]
[357211394,1743897038132,-137.70859457,0.00030956,2]
[357211395,1743897038141,-477.29140543,0.00030956,2]
[357211396,1743897038152,-30.47822799,0.00030956,2]
[357211397,1743897038161,-512.52824009,0.00030956,2]
[357211398,1743897038171,-578.20378569,0.00030956,2]
[357211399,1743897038180,-538.57985355,0.00030956,2]
[357211400,1743897038188,-502.81017383,0.00030956,2]
[357211401,1743897038197,-282.12173885,0.00030956,2]
[357211402,1743897038209,-224.43644605,0.00030956,2]
[357211403,1743897038218,-505.49200236,0.00030956,2]
[357211404,1743897038227,-509.02190301,0.00030956,2]
[357211405,1743897038237,-500.0,0.00030956,2]
[357211406,1743897038246,-500.0,0.00030956,2]
[357211407,1743897038256,-506.06663659,0.00030956,2]
[357211408,1743897038265,-500.0,0.00030956,2]
[357211409,1743897038274,-241.81620291,0.00030956,2]
[357211410,1743897038286,-258.18379709,0.00030956,2]
[357211411,1743897038296,-507.30171577,0.00030956,2]
[357211412,1743897038305,-500.0,0.00030956,2]
[357211413,1743897038314,-500.0,0.00030956,2]
[357211414,1743897038323,-500.0,0.00030956,2]
[357211415,1743897038332,-526.65246906,0.00030956,2]
[357211416,1743897038341,-500.0,0.00030956,2]
[357211417,1743897038350,-500.0,0.00030956,2]
[357211418,1743897038358,-500.0,0.00030956,2]
[357211419,1743897038367,-479.20942067,0.00030956,2]
[357211420,1743897038376,-500.0,0.00030956,2]
[357211421,1743897038385,-500.0,0.00030956,2]
[357211422,1743897038397,-500.0,0.00030956,2]
[357211423,1743897038406,-500.0,0.00030956,2]
[357211424,1743897038414,-500.0,0.00030956,2]
[357211425,1743897038424,-500.0,0.00030956,2]
[357211426,1743897038433,-500.0,0.00030956,2]
[357211427,1743897038442,-257.55642469,0.00030956,2]
[357211428,1743897038450,-500.0,0.00030956,2]
[357211429,1743897038460,-500.0,0.00030956,2]
[357211430,1743897038469,-500.0,0.00030956,2]
[357211432,1743897038478,-205.85423615,0.00030956,2]
[357211434,1743897038488,-382.47802048,0.00030956,2]
[357211436,1743897038497,-500.0,0.00030956,2]
[357211438,1743897038507,-500.0,0.00030956,2]
[357211440,1743897038516,-500.0,0.00030956,2]
[357211442,1743897038525,-500.0,0.00030956,2]
[357211444,1743897038535,-500.0,0.00030956,2]
[357211446,1743897038543,-500.0,0.00030956,2]
[357211447,1743897038552,-500.0,0.00030956,2]
[357211448,1743897038561,-500.000001,0.00030956,2]
[357211449,1743897038570,-500.0,0.00030956,2]
[357211450,1743897038579,-519.46524271,0.00030956,2]
[357211451,1743897038588,-413.93183695,0.00030956,2]
[357211452,1743897038597,-493.81039262,0.00030956,2]
[357211453,1743897038607,-511.77049812,0.00030956,2]
[357211454,1743897038616,-509.64809832,0.00030956,2]
[357211455,1743897038625,-500.0,0.00030956,2]
[357211456,1743897038635,-500.0,0.00030956,2]
[357211457,1743897038644,-500.0,0.00030956,2]
[357211458,1743897038654,-500.0,0.00030956,2]
[357211459,1743897038663,-500.0,0.00030956,2]
[357211460,1743897038672,-217.02953859,0.00030956,2]
[357211461,1743897038688,-282.97046141,0.00030956,2]
[357211462,1743897038697,-500.0,0.00030956,2]
[357211463,1743897038706,-174.72953857,0.00030956,2]
[357211464,1743897038718,-349.39546265,0.00030956,2]
[357211465,1743897038727,-254.06969535,0.00030956,2]
[357211466,1743897038738,-245.93030465,0.00030956,2]
[357211467,1743897038747,-500.0,0.00030956,2]
[357211468,1743897038757,-102.75369675,0.00030956,2]
[357211469,1743897038768,-397.24630325,0.00030956,2]
[357211470,1743897038778,-500.0,0.00030956,2]
[357211471,1743897038787,-500.0,0.00030956,2]
[357211472,1743897038796,-67.88656265,0.00030956,2]
[357211473,1743897038807,-439.88484445,0.00030956,2]
[357211474,1743897038816,-500.0,0.00030956,2]
[357211475,1743897038826,-500.0,0.00030956,2]
[357211476,1743897038835,-500.0,0.00030956,2]
[357211477,1743897038844,-448.58537507,0.00030956,2]
[357211478,1743897038854,-500.0,0.00030956,2]
[357211479,1743897038863,-503.64313504,0.00030956,2]
[357211480,1743897038872,-500.0,0.00030956,2]
[357211481,1743897038882,-500.0,0.00030956,2]
[357211482,1743897038891,-500.0,0.00030956,2]
[357211483,1743897038901,-228.80319458,0.00030956,2]
[357211484,1743897038913,-512.79770847,0.00030956,2]
[357211485,1743897038923,-556.98590287,0.00030956,2]
[357211486,1743897038932,-500.0,0.00030956,2]
[357211487,1743897038940,-500.0,0.00030956,2]
[357211488,1743897038951,-500.0,0.00030956,2]
[357211489,1743897038960,-507.17174074,0.00030956,2]
[357211490,1743897038969,-500.0,0.00030956,2]
[357211491,1743897038979,-500.0,0.00030956,2]
[357211492,1743897038988,-500.0,0.00030956,2]
[357211493,1743897038998,-297.83366397,0.00030956,2]
[357211494,1743897039008,-575.05994405,0.00030956,2]
[357211495,1743897039018,-500.0,0.00030956,2]
[357211496,1743897039027,-253.00723768,0.00030956,2]
[357211497,1743897039038,-246.99276232,0.00030956,2]
[357211498,1743897039048,-500.0,0.00030956,2]
[357211499,1743897039057,-177.05530148,0.00030956,2]
[357211500,1743897039067,-500.0,0.00030956,2]
[357211501,1743897039076,-500.0,0.00030956,2]
[357211502,1743897039085,-213.2749067,0.00030956,2]
[357211503,1743897039096,-286.7250933,0.00030956,2]
[357211504,1743897039105,-76.5155747,0.00030956,2]
[357211505,1743897039116,-423.4844253,0.00030956,2]
[357211506,1743897039126,-500.0,0.00030956,2]
[357211507,1743897039135,-500.0,0.00030956,2]
[357211508,1743897039144,-538.12514263,0.00030956,2]
[357211509,1743897039153,-500.0,0.00030956,2]
[357211510,1743897039162,-543.90585606,0.00030956,2]
[357211511,1743897039172,-500.0,0.00030956,2]
[357211512,1743897039181,-500.0,0.00030956,2]
[357211513,1743897039191,-500.0,0.00030956,2]
[357211514,1743897039201,-576.65508759,0.00030956,2]
[357211515,1743897039210,-500.0,0.00030956,2]
[357211516,1743897039220,-500.0,0.00030956,2]
[357211517,1743897039230,-500.0,0.00030956,2]
[357211518,1743897039240,-500.0,0.00030956,2]
[357211519,1743897039250,-500.0,0.00030957,2]
[357211520,1743897039259,-500.0,0.00030957,2]
[357211521,1743897039268,-500.0,0.00030957,2]
[357211522,1743897039278,-603.34734769,0.00030957,2]
[357211523,1743897039288,-500.0,0.00030957,2]
[357211524,1743897039298,-738.52,0.00030957,2]
[357211525,1743897039307,-500.0,0.00030957,2]
[357211526,1743897039317,-500.0,0.00030957,2]
[357211527,1743897039327,-501.69703881,0.00030957,2]
[357211528,1743897039336,-500.0,0.00030957,2]
[357211529,1743897039346,-500.0,0.00030958,2]
[357211530,1743897039355,-500.0,0.00030958,2]
[357211531,1743897039365,-500.0,0.00030958,2]
[357211532,1743897039375,-500.0,0.00030958,2]
[357211533,1743897039384,-2000.0,0.00030958,2]
[357211534,1743897039394,-500.0,0.00030958,2]
[357211535,1743897039404,-500.0,0.00030958,2]
[357211536,1743897039413,-500.0,0.00030958,2]
[357211537,1743897039423,-500.0,0.00030958,2]
[357211538,1743897039432,-500.0,0.00030958,2]
[357211539,1743897039442,-500.0,0.00030958,2]
[357211540,1743897039453,-500.0,0.00030958,2]
[357211541,1743897039462,-500.0,0.00030958,2]
[357211542,1743897039471,-500.0,0.00030958,2]
[357211543,1743897039480,-749.55116391,0.00030962,2]
[357211544,1743897039490,-326.83382694,0.00031,5]
[357211545,1743897039499,-166.66,0.00031017,2]
[357211546,1743897039509,-541.56,0.00031058,2]
[357211547,1743897039518,-500.0,0.00031107,5]
[357211548,1743897039527,-500.0,0.00031107,2]
[357211549,1743897039536,-500.0,0.00031107,5]
[357211550,1743897039545,-440.42116272,0.00031107,2]
[357211551,1743897039554,-500.0,0.00031131,2]
[357211552,1743897039563,-500.0,0.00031131,2]
[357211553,1743897039572,-500.0,0.00031131,2]
[357211554,1743897039581,-500.0,0.00031131,2]
[357211555,1743897039590,-500.0,0.00031131,2]
[357211556,1743897039599,-564.82785834,0.00031131,2]
[357211557,1743897039609,-500.0,0.00031131,2]
[357211558,1743897039618,-500.0,0.00031131,2]
[357211559,1743897039627,-1091.63,0.00031131,2]
[357211560,1743897039636,-500.0,0.00031131,2]
[357211561,1743897039645,-500.0,0.00031131,2]
[357211562,1743897039655,-500.0,0.00031131,2]
[357211563,1743897039664,-500.0,0.00031131,2]
[357211564,1743897039673,-487.51364946,0.00031131,2]
[357211565,1743897039683,-722.04,0.00031131,2]
[357211566,1743897039691,-547.48290715,0.00031131,2]
[357211567,1743897039701,-500.0,0.00031131,2]
[357211568,1743897039710,-6444.8363,0.00031132,2]
[357211569,1743897039720,-21089.9082,0.00031132,2]
[357211570,1743897039730,-500.0,0.0003123,2]
[357211571,1743897039739,-500.0,0.0003123,2]
[357211572,1743897039749,-500.0,0.0003123,2]
[357211573,1743897039759,-500.0,0.0003123,2]
[357211574,1743897039768,-500.0,0.0003123,2]
[357211575,1743897039778,-500.0,0.0003123,2]
[357211576,1743897039787,-500.0,0.0003123,2]
[357211577,1743897039797,-500.0,0.0003123,2]
[357211578,1743897039806,-500.0,0.0003123,2]
[357211579,1743897039815,-299.69070288,0.0003123,2]
[357211580,1743897039825,-221.92726227,0.0003123,2]
[357211581,1743897039834,-387.50359568,0.0003123,2]
[357211582,1743897039844,-500.0,0.0003123,2]
[357211583,1743897039853,-304.35367008,0.0003123,2]
[357211584,1743897039863,-500.0,0.0003123,2]
[357211585,1743897039873,-500.0,0.0003123,2]
[357211586,1743897039882,-500.0,0.0003123,2]
[357211587,1743897039892,-500.0,0.0003123,2]
[357211588,1743897039902,-500.0,0.0003123,2]
[357211589,1743897039915,-500.0,0.0003123,2]
[357211590,1743897039925,-500.0,0.0003123,2]
[357211591,1743897039934,-629.89217024,0.0003123,2]
[357211592,1743897039944,-500.0,0.0003123,2]
[357211593,1743897039954,-500.0,0.0003123,2]
[357211594,1743897039964,-334.09845945,0.0003123,2]
[357211595,1743897039974,-494.1365679,0.0003123,2]
[357211596,1743897039985,-500.0,0.0003123,2]
[357211597,1743897039995,-279.82297442,0.0003123,2]
[357211598,1743897040004,-500.0,0.0003123,2]
[357211599,1743897040014,-500.0,0.0003123,2]
[357211600,1743897040025,-500.0,0.0003123,2]
[357211601,1743897040035,-500.0,0.0003123,2]
[357211602,1743897040045,-500.0,0.0003123,2]
[357211603,1743897040054,-500.0,0.0003123,2]
[357211604,1743897040064,-500.0,0.0003123,2]
[357211605,1743897040074,-500.0,0.0003123,2]
[357211606,1743897040084,-500.0,0.0003123,2]